[Event "21st Open Gran Hotel Bali-A 2024"]
[Site "Benidorm"]
[Date "2024.11.29"]
[Round "1.8"]
[White "Movsziszian, Karen"]
[Black "Steiners, Emils"]
[Result "1-0"]
[ECO "A08"]
[WhiteElo "2439"]
[BlackElo "2054"]
[Annotator "TA"]
[PlyCount "97"]
[EventDate "2024.11.26"]
[EventType "swiss"]
[EventCountry "ESP"]
[SourceTitle "playchess.com"]
[Source "ChessBase"]
[SourceQuality "1"]
[TimeControl "5400+30"]

{[%evp 14,97,0,0,0,0,0,0,25,17,36,17,18,15,18,22,20,18,45,49,58,11,0,0,-4,-52,-43,-53,0,-8,-15,-12,0,0,0,0,0,-20,-22,-8,0,0,26,31,25,35,27,15,709,628,608,534,726,720,980,960,856,844,706,679,5510,2919,5562,5651,5297,2322,1900,1724,29975,29976,29976,29977,29976,29978,29974,1261,29980,29973,5739,5739,29974,29968,29989,29990,29991,29992]} 1. g3 {[%emt 0:07:21]} d5 {[%emt 0:00:07]} 2. Nf3 {[%emt 0:00:37]} c5 {[%emt 0:00:15]} 3. Bg2 {[%emt 0:00:13]} Nf6 {[%emt 0:00:16]} 4. O-O {[%emt 0:00:10]} Nc6 {[%emt 0:00:12]} 5. d3 {[%emt 0:01:18]} e5 {[%emt 0:03:12]} 6. Nbd2 {[%emt 0:05:49]} Be7 {[%emt 0:05:18]} 7. e4 {[%emt 0:00:04]} dxe4 {[%emt 0:09:02]} 8. dxe4 {[%emt 0:02:51]} O-O {[%emt 0:04:24]} 9. c3 {[%emt 0:00:18]} Qc7 {[%emt 0:02:49]} 10. Qe2 {[%emt 0:00:11]} h6 {[%emt 0:02:52]} 11. Nc4 {[%emt 0:01:57]} Be6 {[%emt 0:03:29]} 12. Nh4 {[%emt 0:00:50]} Rad8 {[%emt 0:08:53]} 13. Nf5 {[%emt 0:02:37]} b5 {[%emt 0:10:57]} 14. Nce3 {[%emt 0:00:33]} c4 {[%emt 0:04:18]} 15. a4 {[%emt 0:04:51]} a6 {[%emt 0:01:55]} 16. axb5 {[%emt 0:02:09]} axb5 {[%emt 0:00:27]} 17. Ra6 {[%emt 0:04:38]} (17. Ng4 $1 $14) 17... Nb8 $11 {[%emt 0:07:25]} 18. Ra2 {[%emt 0:04:18]} Bc5 {[%emt 0:08:38]} 19. Ng4 {[%emt 0:02:32]} (19. Qf3 $11 {feels stronger.}) 19... Nbd7 $1 $15 {[%emt 0:01:21]} 20. h3 {[%emt 0:13:19]} Bxf5 {[%emt 0:06:04]} 21. exf5 {[%emt 0:00:16] [#]} e4 $1 {[%emt 0:00:58]} 22. Bf4 {[%emt 0:01:51]} Bd6 {[%emt 0:01:03]} 23. Be3 {[%emt 0:01:05][%cal Bf4e3,Be3b6,Bb6d8,Bd8h4][%mdl 32]} ({But not} 23. Nxf6+ Nxf6 24. Be3 (24. Bxd6 Qxd6 25. b3 cxb3 $17) 24... Bc5 $17) 23... Nxg4 {[%emt 0:01:27]} 24. hxg4 {[%emt 0:00:41][%cal Og4g5]} Rfe8 {[%emt 0:02:48]} 25. Ra7 {[%emt 0:03:06]} Qc6 {[%emt 0:01:37]} 26. Rfa1 $1 {[%emt 0:07:10]} Ne5 {[%emt 0:02:55]} 27. R7a6 {[%emt 0:02:58]} Qd5 {[%emt 0:04:12]} 28. Bb6 $1 {[%emt 0:06:50][%csl LRd8,LRe4][%cal Og2e4]} Nf3+ {[%emt 0:01:41]} 29. Bxf3 $1 {[%emt 0:00:59]} exf3 {[%emt 0:00:57]} 30. Qd1 $36 {[%emt 0:00:08][%mdl 2048] Black is under pressure.} Qe4 $2 {[%emt 0:05:26][%mdl 8192]} (30... Qxd1+ $11 31. Rxd1 Rd7) 31. Bxd8 $18 {[%emt 0:01:24]} Bxg3 {[%emt 0:00:27]} 32. fxg3 {[%emt 0:02:52]} Qxg4 {[%emt 0:00:32]} 33. Bh4 {[%emt 0:11:16]} Re2 {[%emt 0:00:30]} 34. Qd8+ {[%emt 0:07:08]} Kh7 {[%emt 0:00:06] [#]} 35. Rxh6+ $3 {[%emt 0:01:00]} gxh6 {[%emt 0:00:08]} 36. Qf6 {[%emt 0:00:02]} f2+ {[%emt 0:01:16]} 37. Kf1 {[%emt 0:00:15]} Re1+ {[%emt 0:00:28]} 38. Rxe1 {[%emt 0:00:07]} fxe1=Q+ {[%emt 0:00:07]} 39. Kxe1 {[%emt 0:00:03]} Qe4+ {[%emt 0:00:51]} 40. Kf2 {[%emt 0:00:02]} Qc2+ {[%emt 0:00:33]} 41. Ke3 {[%emt 0:00:25]} Qd3+ {[%emt 0:00:30]} 42. Kf4 {[%emt 0:00:05]} Qd2+ {[%emt 0:00:32]} 43. Ke5 {[%emt 0:00:15]} Qe3+ {[%emt 0:00:17]} 44. Kd5 {[%emt 0:00:14]} (44. Kd6 $142 Qb6+ 45. Kd5 Qb7+ 46. Qc6 Qb8 47. Qd7 Qg8 48. Bf6 (48. Qxb5 Kg7 $18) 48... Qa8+ 49. Kc5) 44... Qf3+ {[%emt 0:00:10]} 45. Kc5 {[%emt 0:00:12]} Qf2+ {[%emt 0:00:03]} 46. Kc6 {[%emt 0:01:18]} Qg2+ {[%emt 0:00:09]} 47. Kd6 {[%emt 0:00:19]} Qd2+ {[%emt 0:00:12]} 48. Ke7 {[%emt 0:00:12]} Qe3+ {[%emt 0:01:30]} 49. Kxf7 {[%emt 0:00:14]} 1-0

[Event "21st Open Gran Hotel Bali-A 2024"]
[Site "Benidorm"]
[Date "2024.11.29"]
[Round "1.9"]
[White "Portero Rubio, Martin"]
[Black "Marin, Mihail"]
[Result "0-1"]
[ECO "B08"]
[WhiteElo "2053"]
[BlackElo "2431"]
[Annotator "TA"]
[PlyCount "138"]
[EventDate "2024.11.26"]
[EventType "swiss"]
[EventCountry "ESP"]
[SourceTitle "playchess.com"]
[Source "ChessBase"]
[SourceQuality "1"]
[TimeControl "5400+30"]

{[%evp 18,138,14,12,9,14,19,14,17,14,28,35,26,8,16,16,27,30,37,48,68,6,55,55,49,49,51,34,52,50,49,40,51,43,39,58,49,41,41,14,10,21,47,0,0,-47,-39,-33,-50,-48,-31,-37,-33,-84,-79,-83,-85,-89,-89,-89,-82,-82,-82,-121,-121,-221,-185,-188,-87,-82,-86,-86,-75,-91,-100,-98,-103,-106,-99,-127,-125,-186,-187,-187,-187,-180,-180,-329,-329,-329,-329,-316,-307,-366,-363,-345,-319,-358,-355,-333,-229,-253,-249,-264,-264,-362,-339,-308,-308,-430,-351,-345,-360,-828,-771,-833,-814,-2112,-2023,-29982,-29983,-29980,-29981]} 1. e4 {[%emt 0:00:03]} g6 {[%emt 0:00:10]} 2. d4 {[%emt 0:00:07]} Bg7 {[%emt 0:00:04]} 3. Nf3 {[%emt 0:00:22]} d6 {[%emt 0:00:06]} 4. Nc3 {[%emt 0:01:28]} a6 {[%emt 0:00:36]} 5. a4 {[%emt 0:00:42]} Nf6 {[%emt 0:01:57]} 6. Be2 {[%emt 0:00:36]} O-O {[%emt 0:00:10]} 7. O-O {[%emt 0:01:01]} b6 {[%emt 0:02:46]} 8. Re1 {[%emt 0:10:49]} e6 {[%emt 0:02:08]} 9. Bf1 {[%emt 0:02:54]} Bb7 {[%emt 0:06:25]} 10. h3 {[%emt 0:03:28]} Nc6 {[%emt 0:02:31]} 11. Bg5 {[%emt 0:05:33]} h6 {[%emt 0:00:16]} 12. Bh4 {[%emt 0:01:23]} Ne7 {[%emt 0:14:45]} 13. Bd3 {[%emt 0:12:11]} Nd7 {[%emt 0:03:51]} 14. Qd2 {[%emt 0:07:46]} c5 {[%emt 0:06:03]} 15. Bf1 {[%emt 0:06:12]} cxd4 {[%emt 0:11:48]} 16. Nxd4 {[%emt 0:00:18]} Nf6 {[%emt 0:07:52][%cal Bd7f6,Bf6d5,Bd5f4][%mdl 32]} 17. Rad1 {[%emt 0:03:21]} g5 {[%emt 0:02:12]} 18. Bg3 {[%emt 0:01:19]} Rc8 {[%emt 0:02:24]} 19. f3 {[%emt 0:05:03]} ({White should play} 19. h4 $14) 19... Ng6 {[%emt 0:08:01]} (19... Nh5 $1 $11 20. Bh2 Qc7) 20. Nb3 $14 {[%emt 0:07:51]} d5 {[%emt 0:05:47]} 21. exd5 {[%emt 0:08:32]} Nxd5 {[%emt 0:00:51]} 22. Ne4 {[%emt 0:03:36]} Ndf4 {[%emt 0:04:52]} 23. Nd6 {[%emt 0:02:18]} Rb8 {[%emt 0:00:10]} 24. Nxb7 {[%emt 0:04:15]} Qxd2 {[%emt 0:00:07]} 25. Rxd2 {[%emt 0:00:43]} Rxb7 {[%emt 0:00:05]} 26. c3 {[%emt 0:02:40]} Ra8 {[%emt 0:00:42]} 27. Red1 {[%emt 0:01:19]} Bf6 {[%emt 0:00:08] Wards off Rd8+} 28. Rd7 {[%emt 0:01:19]} Rxd7 {[%emt 0:01:16]} 29. Rxd7 {[%emt 0:00:02]} Ne5 {[%emt 0:00:10]} 30. Rd2 {[%emt 0:02:43]} (30. Rb7 $14) 30... Nxh3+ $11 {[%emt 0:02:17] Excellent horsemanship.} 31. Kh2 {[%emt 0:02:50]} (31. gxh3 $11 Nxf3+ 32. Kf2 Nxd2 33. Nxd2) 31... Nf4 $15 {[%emt 0:00:08]} 32. Bxf4 {[%emt 0:02:29]} gxf4 {[%emt 0:00:04]} 33. Rd6 {[%emt 0:00:05]} Bd8 {[%emt 0:02:40]} 34. Rd4 {[%emt 0:01:22]} Bc7 {[%emt 0:00:48]} 35. Kh3 {[%emt 0:00:35]} (35. Kg1 $15) 35... Kf8 $17 {[%emt 0:05:37]} 36. Rxf4 {[%emt 0:00:37] [#]} Nd3 $1 {[%emt 0:02:23]} 37. Rc4 {[%emt 0:00:24]} Nf2+ {[%emt 0:00:49]} 38. Kh4 {[%emt 0:00:01] [#]} Bd8+ $1 {[%emt 0:00:08]} 39. Kg3 {[%emt 0:00:24]} Nd1 {[%emt 0:00:07]} 40. Rd4 {[%emt 0:01:02]} Nxb2 {[%emt 0:00:54]} 41. Kf2 {[%emt 0:00:35] [#]} (41. Nc1 $17) 41... b5 $1 {[%emt 0:01:11][%mdl 512]} 42. Nc5 {[%emt 0:00:38]} (42. axb5 Bb6 43. c4 (43. bxa6 $2 e5 $19) 43... Bxd4+ 44. Nxd4 axb5 45. cxb5 Ke8 $19) 42... Nxa4 {[%emt 0:03:11]} (42... Kg7 $19 {has better winning chances. and ...Bb6 would now be decisive} 43. Rd2 Bb6 (43... Nxa4 44. Nxa4 bxa4 45. Ra2 $17) 44. Rxb2 Bxc5+ 45. Ke1 bxa4) 43. Nxa4 {[%emt 0:00:21]} bxa4 {[%emt 0:00:03]} 44. Rxa4 $19 {[%emt 0:00:01][%mdl 4096] Endgame KRB-KRB. Black is a pawn up.} Bb6+ {[%emt 0:00:14]} 45. Kg3 {[%emt 0:00:24]} a5 {[%emt 0:00:06]} 46. Bb5 {[%emt 0:01:00]} Rc8 {[%emt 0:00:28]} 47. c4 {[%emt 0:00:26]} Ke7 {[%emt 0:00:07]} 48. Kf4 {[%emt 0:00:29]} h5 {[%emt 0:00:32] Black is more active.} 49. Ra1 {[%emt 0:00:37] [#]} (49. Kg3 $17 {is a better defense.}) 49... Rg8 $1 {[%emt 0:01:56]} 50. Ra2 {[%emt 0:01:16]} f5 {[%emt 0:01:27]} 51. c5 {[%emt 0:00:00]} Bxc5 {[%emt 0:00:34]} 52. Rxa5 {[%emt 0:00:03]} (52. Rc2 $142 Bd6+ 53. Ke3) 52... Rxg2 {[%emt 0:01:28]} 53. Bf1 {[%emt 0:00:53]} Bd6+ {[%emt 0:00:26]} 54. Ke3 {[%emt 0:00:01]} Rc2 {[%emt 0:00:12]} 55. Ra7+ {[%emt 0:00:50]} Kf6 {[%emt 0:00:08]} 56. Rh7 {[%emt 0:00:38]} Kg6 {[%emt 0:00:54]} 57. Rh8 {[%emt 0:00:28]} Be5 {[%emt 0:00:56]} 58. Rg8+ {[%emt 0:00:24]} Bg7 {[%emt 0:00:16]} 59. Bd3 {[%emt 0:00:27]} Rc3 {[%emt 0:00:46]} 60. Kd2 {[%emt 0:00:28][%cal Og8g7]} Ra3 {[%emt 0:00:08]} 61. Re8 {[%emt 0:00:28]} e5 {[%emt 0:00:57]} 62. Re6+ {[%emt 0:00:37]} Kg5 {[%emt 0:00:18]} 63. Re7 {[%emt 0:00:32]} Kf6 {[%emt 0:00:31]} 64. Rb7 {[%emt 0:00:33]} h4 {[%emt 0:00:42]} 65. Rb1 $2 {[%emt 0:00:33]} (65. f4 e4 (65... exf4 66. Rb5 $11) 66. Bc4) 65... Bh6+ {[%emt 0:00:20]} 66. Kc2 {[%emt 0:00:33]} h3 {[%emt 0:00:39]} 67. Rh1 {[%emt 0:00:30] [#]} h2 $1 {[%emt 0:00:10]} 68. Be2 {[%emt 0:00:30]} (68. Bb5 Bf4) 68... Ra2+ {[%emt 0:00:11]} 69. Kd3 {[%emt 0:00:08]} Rd2+ {[%emt 0:00:06]} 0-1

[Event "21st Open Gran Hotel Bali-A 2024"]
[Site "Benidorm"]
[Date "2024.11.29"]
[Round "1.10"]
[White "Wirig, Anthony"]
[Black "Shah Jeet"]
[Result "1/2-1/2"]
[ECO "D35"]
[WhiteElo "2427"]
[BlackElo "2052"]
[Annotator "TA"]
[PlyCount "95"]
[EventDate "2024.11.26"]
[EventType "swiss"]
[EventCountry "ESP"]
[SourceTitle "playchess.com"]
[Source "ChessBase"]
[SourceQuality "1"]
[TimeControl "5400+30"]

{[%evp 16,95,24,22,34,36,41,41,63,0,0,0,8,3,9,0,0,0,0,-1,22,31,45,26,33,39,59,61,68,60,46,44,48,12,15,0,0,0,31,27,31,0,0,0,0,-25,0,0,0,0,0,-34,125,117,199,208,203,190,225,215,212,194,193,243,321,222,321,91,97,36,33,33,36,28,60,33,33,33,34,0,0,0]} 1. d4 {[%emt 0:00:05]} d5 {[%emt 0:00:24]} 2. Nf3 {[%emt 0:00:37]} Nf6 {[%emt 0:01:26]} 3. c4 {[%emt 0:01:14]} e6 {[%emt 0:00:16]} 4. Nc3 {[%emt 0:01:57]} Nbd7 {[%emt 0:03:29][%cal Bb8d7,Bd7f8,Bf8g6][%mdl 32]} 5. cxd5 {[%emt 0:02:49]} exd5 {[%emt 0:00:14]} 6. Bf4 {[%emt 0:00:09]} c6 {[%emt 0:00:42]} 7. e3 {[%emt 0:01:47]} Be7 {[%emt 0:00:30]} 8. Bd3 {[%emt 0:05:18]} Nf8 {[%emt 0:05:53]} 9. h3 {[%emt 0:06:04]} Ng6 {[%emt 0:00:56]} 10. Bg3 {[%emt 0:03:25]} O-O {[%emt 0:06:41]} 11. Qc2 {[%emt 0:05:45]} Bd6 {[%emt 0:10:44]} 12. Ne5 {[%emt 0:06:01]} (12. Bxd6 $14 Qxd6 13. Rb1) 12... Re8 $11 {[%emt 0:12:08]} 13. f4 {[%emt 0:03:50]} c5 {[%emt 0:08:11]} 14. O-O {[%emt 0:05:52]} c4 {[%emt 0:17:48]} 15. Be2 {[%emt 0:04:36]} Bb4 {[%emt 0:02:36]} 16. Be1 {[%emt 0:16:34]} Bxc3 {[%emt 0:03:23]} 17. bxc3 {[%emt 0:00:23]} Ne4 {[%emt 0:07:51]} 18. Bf3 {[%emt 0:06:48]} Nxe5 {[%emt 0:05:28]} 19. dxe5 {[%emt 0:05:21][%cal Oa1d1]} f5 {[%emt 0:04:48]} 20. Rd1 {[%emt 0:02:18]} Qb6 21. Rd4 {[%emt 0:01:20]} Be6 {[%emt 0:00:49]} 22. Bxe4 {[%emt 0:01:38]} dxe4 {[%emt 0:00:08]} 23. Bh4 {[%emt 0:00:16] Prevents Red8} Qc5 {[%emt 0:01:46]} 24. Rfd1 {[%emt 0:02:15]} b5 {[%emt 0:00:18]} 25. Qf2 {[%emt 0:00:02]} a5 {[%emt 0:01:53]} 26. Qg3 $1 {[%emt 0:06:34]} b4 {[%emt 0:00:16]} (26... Kh8 $5) 27. Bf6 {[%emt 0:00:53][%csl Gf6][%cal Rg3g7]} g6 $1 {[%emt 0:02:52]} (27... Qf8 $6 28. Rd7 Bf7 (28... Bxd7 $2 29. Rxd7 g6 30. Qh4 $18) 29. cxb4 axb4 30. R1d6 $16) 28. Qh4 {[%emt 0:05:20]} Qc7 {[%emt 0:03:00] Against Rd7} 29. Qh6 $40 {[%emt 0:01:38][%cal Od4d7][%mdl 128] Threatening mate with Rd7!. Black needs to defend precisely.} Qf7 {[%emt 0:00:00]} 30. Rd6 {[%emt 0:01:04]} b3 {[%emt 0:00:00]} 31. a4 {[%emt 0:00:47]} Rab8 {[%emt 0:00:00][%cal Ba8b8,Bb8b7,Bb7b3][%mdl 32]} 32. Kh2 {[%emt 0:00:35]} Rb7 {[%emt 0:00:00]} 33. Bd8 {[%emt 0:01:48][%cal Bf6d8,Bd8a5,Ba5b4][%mdl 32]} b2 $2 {[%emt 0:01:05] Black is weak on the dark squares} (33... Bd7 $15 {stays ahead.} 34. Bxa5 Bxa4) 34. Rb1 $1 $16 {[%emt 0:00:01] White is more active.} Qf8 {[%emt 0:01:13]} (34... Rb3 $16) 35. Qxf8+ $1 $18 {[%emt 0:02:56]} Kxf8 {[%emt 0:00:05]} 36. Bxa5 {[%emt 0:00:00]} Rb3 {[%emt 0:01:00]} 37. Rb6 $1 {[%emt 0:00:00]} Ra8 {[%emt 0:00:35]} 38. Bb4+ {[%emt 0:00:44]} Kf7 {[%emt 0:00:01] [#]} 39. a5 $1 {[%emt 0:00:24]} Ra7 {[%emt 0:00:59]} 40. Kg3 {[%emt 0:00:48] and a6 should not be overlooked} Bd5 {[%emt 0:00:29]} (40... Ra8 $142 41. h4 h5) 41. Kf2 $2 {[%emt 0:00:28]} (41. a6 $18 {is the precise move to win.}) 41... Rb7 $16 {[%emt 0:00:18] [#]} 42. e6+ {[%emt 0:00:33]} Ke8 $1 $14 {[%emt 0:00:19] aiming for ...Rxb6.} 43. Rxb7 {[%emt 0:00:26]} ({Avoid the trap} 43. Rd6 $2 R7xb4 44. Rxd5 (44. cxb4 $2 {perishes.} c3 $19) 44... Rxc3 $19) 43... Bxb7 {[%emt 0:00:01]} 44. Bd6 {[%emt 0:00:32]} Bd5 {[%emt 0:00:49]} 45. e7 {[%emt 0:00:17]} Bb7 {[%emt 0:00:58]} 46. Ke2 {[%emt 0:00:28]} Rb5 $1 {[%emt 0:00:36]} 47. Ba3 {[%emt 0:00:46]} (47. Bb4 Rxb4 48. cxb4 c3 $11) 47... Rxa5 {[%emt 0:00:12]} 48. Bxb2 {[%emt 0:00:29]} (48. Rxb2 Rxa3 49. Rxb7 Rxc3) 1/2-1/2

[Event "21st Open Gran Hotel Bali-A 2024"]
[Site "Benidorm"]
[Date "2024.11.29"]
[Round "1.11"]
[White "Tenfjord Engelsen, Teodor"]
[Black "Gormally, Daniel W"]
[Result "1/2-1/2"]
[ECO "D05"]
[WhiteElo "2044"]
[BlackElo "2424"]
[Annotator "TA"]
[PlyCount "45"]
[EventDate "2024.11.26"]
[EventType "swiss"]
[EventCountry "ESP"]
[SourceTitle "playchess.com"]
[Source "ChessBase"]
[SourceQuality "1"]
[TimeControl "5400+30"]

{[%evp 11,45,12,11,0,0,0,0,0,25,13,8,1,25,29,103,45,61,0,4,8,17,23,19,0,0,0,30,31,14,14,6,30,18,23,28,18]} 1. d4 {[%emt 0:00:05]} Nf6 {[%emt 0:00:33]} 2. Nf3 {[%emt 0:00:05]} c5 {[%emt 0:01:55]} 3. c3 {[%emt 0:01:42]} e6 {[%emt 0:01:18]} 4. Nbd2 {[%emt 0:03:46]} d5 {[%emt 0:01:55]} 5. e3 {[%emt 0:01:35]} Nc6 {[%emt 0:00:09]} 6. Bd3 {[%emt 0:02:24]} Bd6 {[%emt 0:00:44]} 7. dxc5 {[%emt 0:01:21]} Bxc5 {[%emt 0:00:23]} 8. b4 {[%emt 0:03:30]} Bd6 {[%emt 0:02:00]} 9. a3 {[%emt 0:01:46]} Ne5 {[%emt 0:02:26]} 10. Nxe5 {[%emt 0:03:31]} Bxe5 {[%emt 0:00:06]} 11. Bb2 {[%emt 0:00:22]} Nd7 {[%emt 0:01:56]} 12. O-O {[%emt 0:09:19]} b6 {[%emt 0:07:43]} (12... h6 $11 {keeps the balance.}) 13. Qb1 {[%emt 0:18:56]} (13. f4 $16 Bf6 14. e4) 13... Bb7 {[%emt 0:00:43]} 14. Rc1 {[%emt 0:00:39]} (14. f4 $1 $14 Bf6 15. e4) 14... h6 {[%emt 0:09:12]} 15. c4 {[%emt 0:05:40]} O-O {[%emt 0:01:46]} 16. cxd5 {[%emt 0:02:02]} Bxd5 {[%emt 0:00:58]} 17. Be4 {[%emt 0:02:51]} Bxe4 {[%emt 0:05:38]} 18. Nxe4 {[%emt 0:02:13]} f5 {[%emt 0:00:18]} 19. Bxe5 {[%emt 0:04:38]} Nxe5 {[%emt 0:02:44]} 20. Ng3 {[%emt 0:03:58]} f4 {[%emt 0:04:46]} 21. exf4 {[%emt 0:01:47]} Rxf4 {[%emt 0:00:08]} 22. Qa2 {[%emt 0:02:25]} Qd5 {[%emt 0:09:38]} 23. Rd1 {[%emt 0:01:07]} 1/2-1/2

[Event "21st Open Gran Hotel Bali-A 2024"]
[Site "Benidorm"]
[Date "2024.11.29"]
[Round "1.12"]
[White "Elsness, Frode"]
[Black "Nieminen, Kari"]
[Result "1-0"]
[ECO "D35"]
[WhiteElo "2424"]
[BlackElo "2043"]
[Annotator "TA"]
[PlyCount "61"]
[EventDate "2024.11.26"]
[EventType "swiss"]
[EventCountry "ESP"]
[SourceTitle "playchess.com"]
[Source "ChessBase"]
[SourceQuality "1"]
[TimeControl "5400+30"]

{[%evp 13,61,23,37,32,32,29,35,28,31,18,53,50,49,57,56,68,63,56,82,54,95,14,118,73,116,120,106,30,112,0,0,0,209,208,202,224,272,274,287,294,302,300,304,305,308,313,415,421,404,410]} 1. d4 {[%emt 0:00:04]} d5 {[%emt 0:00:12]} 2. c4 {[%emt 0:00:08]} e6 {[%emt 0:00:06][%cal Be7e6,Be6d5][%mdl 32]} 3. Nc3 {[%emt 0:00:13]} Nf6 {[%emt 0:00:16]} 4. cxd5 {[%emt 0:00:35]} exd5 {[%emt 0:00:06]} 5. Bg5 {[%emt 0:00:08]} Nbd7 {[%emt 0:00:53][%cal Bb8d7,Bd7f8,Bf8e6][%mdl 32]} 6. e3 {[%emt 0:00:34]} c6 {[%emt 0:04:14]} 7. Bd3 {[%emt 0:00:44]} h6 {[%emt 0:01:20]} 8. Bf4 {[%emt 0:02:25]} Be7 {[%emt 0:00:58]} 9. h3 {[%emt 0:00:10]} Nf8 {[%emt 0:01:10]} 10. Nf3 {[%emt 0:00:56]} Ne6 {[%emt 0:02:55]} 11. Bh2 {[%emt 0:01:22]} Ng5 {[%emt 0:04:44]} 12. Ne5 {[%emt 0:03:10]} Nge4 {[%emt 0:08:52]} 13. O-O {[%emt 0:13:06]} Nxc3 {[%emt 0:12:16]} 14. bxc3 {[%emt 0:00:05][%cal Bb2c3,Bc3c4][%mdl 32]} O-O {[%emt 0:00:05]} 15. c4 {[%emt 0:05:56]} Bd6 {[%emt 0:13:26]} 16. Rb1 {[%emt 0:14:55]} Qe7 {[%emt 0:05:03]} 17. Qb3 {[%emt 0:07:43]} (17. c5 $16 Bc7 18. Qe2) 17... a6 {[%emt 0:26:19]} (17... dxc4 $11 18. Nxc4 (18. Bxc4 b5 $11) 18... Bxh2+ 19. Kxh2 b6) 18. Rfc1 {[%emt 0:10:24]} Ra7 {[%emt 0:06:04]} 19. Qb6 {[%emt 0:02:44]} Ra8 {[%emt 0:01:06]} 20. Kh1 {[%emt 0:03:07]} ({White should play} 20. c5 $16 Bc7 21. Qb3) 20... Bb8 {[%emt 0:05:06] [#]} (20... Bxe5 $11 {keeps the balance.} 21. dxe5 (21. Bxe5 Nd7 $14) 21... Ne4) 21. Nxc6 {[%emt 0:16:07] White is much more active. The black rooks are passive.} bxc6 $11 {[%emt 0:00:09]} 22. Bxb8 {[%emt 0:00:04]} Bd7 $2 {[%emt 0:00:38]} (22... Nd7 $1 $11 {and Black has nothing to worry.} 23. Qxc6 (23. Qc7 Qa3 $17) 23... Rxb8) 23. Be5 $18 {[%emt 0:02:17]} Ne4 {[%emt 0:00:57]} 24. Qb2 {[%emt 0:00:48]} Qh4 {[%emt 0:00:38]} 25. Kg1 {[%emt 0:03:26]} Rfe8 {[%emt 0:00:57]} 26. f3 {[%emt 0:02:33]} Ng5 {[%emt 0:00:29]} 27. Qf2 {[%emt 0:01:07]} Qxf2+ {[%emt 0:00:49]} 28. Kxf2 {[%emt 0:00:01]} f6 {[%emt 0:01:36]} 29. Bg3 {[%emt 0:00:12]} Rec8 {[%emt 0:01:25]} 30. c5 {[%emt 0:02:57] Black is weak on the dark squares} Ra7 {[%emt 0:01:53]} 31. Rb6 1-0